bitfinex-derivatives/quotes_ETHF0:USTF0_20260209
["timestamp","ask_amount","ask_price","bid_price","bid_amount"]
[1770679568520,8.30545672,2107.3,2106.2,0.00368981]
[1770679568723,5.52300621,2107.0,2105.9,4.18170657]
[1770679569828,5.52836758,2107.0,2106.0,4.1532306]
[1770679571730,5.52836758,2107.0,2106.1,4.08634307]
[1770679571929,5.52836758,2107.0,2106.2,4.08634307]
[1770679573425,5.52836758,2107.0,2105.9,4.24587362]
[1770679573731,5.52836758,2107.0,2106.0,4.03400049]
[1770679574730,5.52300621,2107.4,2106.4,4.0053609]
[1770679574933,5.52300621,2107.4,2106.6,8.24241951]
[1770679575436,5.52300621,2107.4,2106.4,8.24241951]
[1770679575729,5.52658943,2107.4,2106.5,3.97881399]
[1770679575933,5.52658943,2107.4,2106.6,3.97881399]
[1770679576435,4.54428589,2107.4,2106.7,5.04536112]
[1770679576635,4.54428589,2107.4,2106.8,5.02183889]
[1770679577029,0.00358322,2107.4,2106.8,5.02183889]
[1770679577231,5.52300621,2107.6,2106.9,5.01896756]
[1770679578134,5.52740066,2107.6,2106.9,5.01896756]
[1770679580933,5.52740066,2107.6,2106.9,4.51896756]
[1770679585039,2.78245051,2108.2,2106.9,4.51896756]
[1770679585239,5.26961,2108.4,2107.2,4.27802897]
[1770679586242,5.27543817,2108.4,2107.2,4.27802897]
[1770679587438,5.27543817,2108.4,2107.1,4.23980998]
[1770679587637,5.27543817,2108.4,2107.0,39.27119933]
[1770679587843,5.27543817,2108.4,2107.1,4.15281155]
[1770679589538,5.27543817,2108.4,2107.2,4.1630689]
[1770679589746,5.27543817,2108.4,2107.3,4.15024094]
[1770679591148,5.27543817,2108.4,2107.4,4.11422811]
[1770679591350,5.27543817,2108.4,2107.4,4.11915492]
[1770679591542,5.27543817,2108.4,2107.4,4.35655492]
[1770679591742,0.00582817,2108.4,2107.6,4.10170242]
[1770679591939,0.00582817,2108.4,2107.7,4.02049596]
[1770679593146,5.27543817,2108.4,2107.5,4.23980998]
[1770679593452,5.27543817,2108.4,2107.4,0.00492681]
[1770679598253,5.27543817,2108.4,2107.4,4.00698009]
[1770679603260,5.27543817,2108.4,2107.5,3.87193307]
[1770679603447,5.27543817,2108.4,2107.4,8.11666986]
[1770679603858,5.27543817,2108.4,2107.4,3.87685988]
[1770679604359,5.27543817,2108.4,2107.4,8.11666986]
[1770679604760,5.27543817,2108.4,2107.5,3.84830758]
[1770679606155,5.27543817,2108.4,2107.4,4.24473679]
[1770679606361,5.27543817,2108.4,2107.4,0.00492681]
[1770679607461,5.27543817,2108.4,2107.4,3.83064444]
[1770679608361,5.27543817,2108.4,2107.5,3.82212154]
[1770679613266,4.96924296,2108.8,2108.0,4.2218143]
[1770679613471,6.98660095,2109.8,2107.9,4.23980998]
[1770679613472,4.96924296,2109.0,2108.4,4.2218143]
[1770679614072,4.96924296,2109.0,2108.1,8.42254964]
[1770679614270,0.00447731,2109.0,2108.2,8.42254964]
[1770679614472,0.00447731,2109.0,2108.4,4.18273966]
[1770679614673,4.96924296,2109.6,2108.5,5.09866431]
[1770679615574,4.97511425,2109.6,2108.6,5.09866431]
[1770679616170,4.97511425,2109.6,2108.7,5.09866431]
[1770679616575,0.00587129,2109.6,2108.7,5.09866431]
[1770679616771,0.00587129,2109.6,2108.8,5.09866431]
[1770679617171,0.00587129,2109.6,2108.9,5.09866431]
[1770679617480,0.00587129,2109.6,2108.9,5.10461306]
[1770679617684,2.97264026,2110.9,2108.9,5.10461306]
[1770679617685,4.96924296,2110.2,2109.0,5.09866431]
[1770679617886,4.96924296,2110.2,2109.2,5.09866431]
[1770679618687,4.97526767,2110.2,2109.2,5.09866431]
[1770679619091,4.97526767,2110.2,2109.3,5.09866431]
[1770679620390,0.00602471,2110.2,2109.3,5.09866431]
[1770679622191,4.97526767,2110.2,2109.3,5.09866431]
[1770679622493,4.97526767,2110.2,2109.5,5.09866431]
[1770679623086,0.00602471,2110.2,2109.5,5.09866431]
[1770679625292,4.97526767,2110.2,2109.5,5.09866431]
[1770679627195,4.97526767,2110.2,2109.4,30.67]
[1770679627395,4.97526767,2110.2,2109.4,35.76866431]
[1770679627996,4.97526767,2110.2,2109.5,5.09866431]
[1770679629491,4.97526767,2110.2,2109.2,5.09866431]
[1770679629698,4.97526767,2110.2,2109.0,5.09866431]
[1770679631193,4.97526767,2110.2,2108.9,0.00594875]
[1770679631698,4.96924296,2109.9,2108.4,5.09866431]
[1770679632694,4.96924296,2109.9,2108.4,5.1027324]
[1770679636596,4.96924296,2109.9,2108.9,2.96666587]
[1770679636794,4.96924296,2109.9,2109.0,5.09866431]
[1770679636996,4.96924296,2109.9,2109.1,5.09866431]
[1770679638900,0.00602471,2110.2,2109.1,5.09866431]
[1770679639100,4.96924296,2110.1,2109.1,5.09866431]
[1770679641106,4.96924296,2110.1,2108.9,4.71954166]
[1770679642498,4.96924296,2110.1,2108.7,4.71954166]
[1770679642999,0.23711,2110.0,2108.5,8.95935164]
[1770679643195,4.64106797,2109.8,2108.5,4.71954166]
[1770679644796,4.64106797,2109.8,2108.6,4.71954166]
[1770679645202,4.64106797,2109.8,2108.7,4.71954166]
[1770679645395,4.64106797,2109.8,2108.8,4.71954166]
[1770679647004,4.64106797,2109.8,2108.9,4.70817158]
[1770679653211,4.64106797,2110.1,2109.0,4.51764053]
[1770679654213,4.64106797,2110.1,2109.1,4.49141744]
[1770679655812,4.64106797,2110.1,2109.2,4.42926808]
[1770679656404,4.64106797,2110.1,2109.1,4.23980998]
[1770679656610,4.64106797,2109.9,2108.7,4.44663432]
[1770679656804,4.00106836,2109.8,2108.7,4.44663432]
[1770679657010,4.64106797,2109.7,2108.7,4.44663432]
[1770679657514,5.74911638,2110.0,2108.5,4.41462172]
[1770679657515,4.64106797,2109.5,2108.5,4.41462172]
[1770679657909,4.64106797,2109.5,2108.4,0.00406809]
[1770679658109,4.64106797,2109.3,2108.4,0.00406809]
[1770679658512,4.64106797,2109.1,2107.9,5.663377]
[1770679658724,4.64106797,2109.1,2108.0,4.37060584]
[1770679659517,4.64106797,2109.1,2108.0,4.37578424]
[1770679665222,4.64106797,2109.1,2108.0,0.0051784]
[1770679665816,4.64106797,2108.9,2107.6,4.13762152]
[1770679667019,4.64106797,2108.9,2107.6,4.14279986]
[1770679668826,4.64106797,2109.1,2107.9,4.05611387]
[1770679669017,4.64106797,2109.1,2107.8,5.663377]
[1770679669018,4.64106797,2109.1,2108.1,4.05360526]
[1770679672427,4.19131837,2109.3,2108.2,3.9278756]
[1770679673127,4.19131837,2109.3,2108.3,3.90163144]
[1770679674424,4.19131837,2109.3,2108.4,3.88120779]
[1770679675531,4.19131837,2110.0,2108.6,3.85554804]
[1770679675731,4.19131837,2110.0,2108.8,3.83240328]
[1770679676626,4.19131837,2110.0,2108.7,30.667]
[1770679676826,4.19131837,2110.0,2108.4,4.1278901]
[1770679677030,4.19131837,2109.9,2108.4,4.1278901]
[1770679677738,4.19131837,2109.7,2108.3,3.86557678]
[1770679679238,4.19131837,2109.7,2108.2,30.667]
[1770679679737,4.19131837,2109.5,2108.2,34.49042654]
[1770679679933,4.19131837,2109.5,2108.2,3.82342654]
[1770679680140,4.19131837,2109.4,2107.9,3.80261372]
[1770679681034,4.19131837,2109.3,2107.9,3.80261372]
[1770679681643,4.19131837,2109.2,2107.7,34.44448936]
[1770679682041,4.19131837,2109.2,2107.8,3.74222113]
[1770679682738,4.19131837,2109.1,2107.8,3.74222113]
[1770679683847,4.19131837,2109.1,2107.9,3.6975776]
[1770679684046,4.19131837,2109.1,2107.9,7.93907726]
[1770679684245,4.19131837,2109.1,2108.0,3.68416163]
[1770679684748,4.19131837,2109.1,2108.0,7.92566129]
[1770679684935,4.19131837,2109.1,2108.1,3.6633024]
[1770679685339,4.19131837,2109.1,2108.2,3.66118536]
[1770679686240,4.19131837,2109.1,2108.3,3.64940915]
[1770679695648,4.19131837,2109.4,2108.3,3.64940915]
[1770679695953,4.19131837,2109.4,2108.4,3.44068869]
[1770679699558,4.19131837,2109.4,2108.2,3.40634187]
[1770679702553,4.19131837,2109.4,2108.3,3.33058694]
[1770679705866,4.19131837,2109.4,2108.4,3.25247169]
[1770679706762,4.19131837,2109.4,2108.3,5.663377]
[1770679706958,3.91213171,2109.2,2108.3,3.2371206]
[1770679707153,3.91213171,2109.2,2108.3,8.9004976]
[1770679708261,3.91213171,2109.2,2108.4,3.22272974]
[1770679715070,3.91213171,2109.2,2108.5,3.09932855]
[1770679715968,3.91213171,2109.2,2108.4,3.08506633]
[1770679717871,3.91213171,2109.2,2108.3,5.663377]
[1770679719172,3.91213171,2109.2,2108.4,3.03728177]
[1770679727071,3.91213171,2109.0,2108.2,5.663377]
[1770679727375,3.91213171,2109.0,2108.1,8.63288108]
[1770679727576,3.91213171,2109.0,2108.2,2.96950408]
[1770679728179,3.91213171,2109.0,2108.3,2.94908814]
[1770679729274,3.91213171,2109.0,2108.4,2.93543968]
[1770679729474,3.91213171,2109.0,2108.2,8.59881668]
[1770679730979,3.91213171,2109.0,2108.3,2.89189258]
[1770679734882,3.91213171,2109.0,2108.1,8.49820124]
[1770679735282,3.91213171,2109.0,2108.2,2.83356005]
[1770679736787,3.54615891,2108.8,2108.0,8.46601577]
[1770679736986,3.54615891,2108.8,2108.0,2.80263877]
[1770679737492,3.54615891,2108.8,2107.9,2.80141436]
[1770679741696,3.54615891,2109.1,2108.3,2.62251663]
[1770679742389,3.54615891,2109.1,2108.5,2.43994487]
[1770679743793,3.54615891,2109.6,2108.5,2.43994487]
[1770679744490,3.54615891,2109.6,2108.8,2.40504185]
[1770679747698,3.54615891,2109.6,2108.7,4.26171177]
[1770679748597,3.54615891,2109.6,2108.8,2.37641874]
[1770679751096,3.54615891,2110.0,2109.1,2.35753478]
[1770679751394,3.54615891,2110.0,2109.2,2.35753478]
[1770679754097,3.54615891,2110.0,2109.1,0.00518332]
[1770679757401,3.54615891,2110.0,2108.7,2.29852899]
[1770679758503,3.54615891,2110.0,2108.7,2.30368266]
[1770679758808,3.54615891,2109.0,2107.7,3.7649408]
[1770679759697,3.46334198,2108.8,2107.7,3.76865537]
[1770679760204,3.46334198,2108.6,2107.7,0.00371457]
[1770679760407,3.3368171,2108.4,2107.1,3.3530929]
[1770679760908,3.3368171,2108.2,2106.8,3.3530929]
[1770679761112,3.3368171,2108.0,2106.8,3.3530929]
[1770679761311,3.3368171,2108.0,2106.8,3.63655003]
[1770679761609,3.3368171,2108.0,2106.8,3.63997634]
[1770679765503,3.3368171,2108.5,2107.0,3.3530929]
[1770679766307,3.3368171,2108.5,2107.3,3.3530929]
[1770679767210,0.00473916,2108.6,2107.6,3.3530929]
[1770679767411,3.34155626,2108.6,2107.2,3.3530929]
[1770679767608,3.34155626,2108.6,2107.4,3.3530929]
[1770679771409,3.3368171,2108.5,2107.4,3.3530929]
[1770679772216,3.3368171,2108.5,2107.0,30.91044]
[1770679772217,3.3368171,2108.5,2107.2,3.3530929]
[1770679773215,3.3368171,2108.5,2107.7,3.3530929]
[1770679775924,3.34155626,2108.6,2107.7,3.3530929]
[1770679776524,11.89467561,2109.5,2107.9,3.3530929]
[1770679776525,3.3368171,2109.0,2107.9,3.3530929]
[1770679777635,3.34098262,2109.0,2107.9,3.3530929]
[1770679779130,3.34098262,2109.0,2108.0,3.3530929]
[1770679785425,3.34098262,2109.0,2108.2,3.3530929]
[1770679785930,0.00416552,2109.0,2108.2,3.3530929]
[1770679787933,3.3368171,2109.8,2108.8,3.3530929]
[1770679789031,3.34254143,2109.8,2108.8,3.35742547]
[1770679789633,3.34254143,2109.8,2108.9,4.02330604]
[1770679793138,4.12449699,2110.5,2109.1,4.02330604]
[1770679793333,4.12449699,2110.5,2109.5,4.02330604]
[1770679794347,4.12818931,2110.5,2109.5,4.02330604]
[1770679795733,4.12818931,2110.5,2109.3,4.02330604]
[1770679798544,4.12449699,2110.3,2109.1,4.02330604]
[1770679799052,4.12449699,2110.3,2108.9,4.02330604]
[1770679799743,4.05962891,2110.2,2108.8,0.00433257]
[1770679799942,4.12449699,2110.1,2108.8,0.00433257]
[1770679800146,4.12449699,2110.1,2108.8,4.02763861]
[1770679800738,4.12449699,2110.1,2108.8,0.00433257]
[1770679801237,4.12449699,2110.1,2108.8,4.02763861]
[1770679801646,4.12449699,2110.3,2109.3,4.02330604]
[1770679802544,4.12449699,2110.3,2109.0,4.02330604]
[1770679802742,4.12449699,2110.3,2109.1,2.69809736]
[1770679802944,4.12449699,2110.3,2109.2,4.02330604]
[1770679807155,0.00369232,2110.5,2109.3,4.02330604]
[1770679807355,0.00369232,2110.5,2109.5,4.02330604]
[1770679807856,4.12449699,2110.9,2109.7,4.02330604]
[1770679808953,4.13023342,2110.9,2109.7,4.02330604]
[1770679812857,4.13023342,2110.9,2109.5,4.02330604]
[1770679813060,4.12449699,2110.7,2109.5,4.02330604]
[1770679815359,4.12449699,2110.5,2109.5,4.02330604]
[1770679818151,4.12449699,2110.5,2109.2,4.02330604]
[1770679818152,4.12449699,2110.3,2109.2,4.02330604]
[1770679818360,4.12449699,2110.1,2109.2,4.02330604]
[1770679818555,4.12449699,2110.1,2109.0,4.02330604]
[1770679818861,4.12449699,2109.9,2109.0,4.02330604]
[1770679819062,4.12449699,2109.7,2109.0,4.02330604]
[1770679819461,4.12449699,2109.7,2108.8,0.00433257]
[1770679819658,4.86480842,2109.5,2108.6,4.77696692]
[1770679819960,4.86480842,2109.5,2108.4,4.77696692]
[1770679820258,4.86480842,2109.3,2108.4,4.77696692]
[1770679820658,4.86862495,2109.3,2108.4,4.78116302]
[1770679820860,5.09456933,2108.5,2107.3,4.75147483]
[1770679821070,5.09456933,2108.3,2107.3,4.75147483]
[1770679821760,5.09456933,2108.3,2107.3,4.75743898]
[1770679823255,5.09456933,2109.0,2107.4,4.75147483]
[1770679823463,5.09456933,2108.8,2107.4,4.75147483]
[1770679830961,5.09456933,2108.8,2107.5,4.75147483]
[1770679836481,5.09456933,2108.8,2107.3,4.75743898]
[1770679839486,5.09456933,2108.8,2107.5,4.75147483]
[1770679839887,5.09456933,2108.8,2107.7,4.75147483]
[1770679840489,5.09456933,2109.2,2107.7,4.75147483]
[1770679845590,5.09456933,2109.2,2107.4,4.75147483]
[1770679845591,5.09456933,2109.0,2107.4,4.75147483]
[1770679845791,5.09456933,2108.7,2107.3,0.00596415]
[1770679845984,2.69733391,2108.8,2107.3,0.00596415]
[1770679845985,5.09456933,2108.5,2107.3,0.00596415]
[1770679846389,5.09456933,2108.3,2107.3,0.00596415]
[1770679846589,2.7936736,2108.5,2107.3,0.00596415]
[1770679846590,5.09456933,2108.1,2107.3,0.00596415]
[1770679846993,5.09456933,2108.1,2107.0,4.75147483]
[1770679847993,5.09456933,2108.1,2107.0,4.75710821]
[1770679849498,5.09456933,2107.9,2107.0,4.75710821]
[1770679852397,5.38413982,2108.1,2107.0,4.75710821]
[1770679852903,5.38413982,2108.5,2107.3,5.42403475]
[1770679853099,5.38413982,2108.9,2107.3,5.42403475]
[1770679853295,5.38413982,2108.7,2107.3,5.42403475]
[1770679854398,5.38413982,2108.7,2107.3,11.08815006]
[1770679854590,5.38413982,2108.7,2107.4,5.42403475]
[1770679857808,5.38413982,2108.9,2107.7,5.42403475]
[1770679858007,5.38413982,2108.9,2107.9,5.42403475]
[1770679862009,0.00381653,2109.3,2108.3,5.42403475]
[1770679863510,5.38413982,2109.5,2108.5,5.42403475]
[1770679863710,5.38413982,2109.5,2108.7,5.42403475]
[1770679863907,2.7936736,2110.2,2108.7,5.42403475]
[1770679863908,5.38413982,2110.2,2108.7,5.42403475]
[1770679864109,5.38413982,2110.2,2108.9,5.42403475]
[1770679864503,5.38850635,2110.2,2108.9,5.42928751]
[1770679864707,0.00436653,2110.2,2108.9,5.42928751]
[1770679865407,0.00436653,2110.2,2109.3,5.42403475]
[1770679866415,5.38850635,2110.2,2109.3,5.42403475]
[1770679867309,5.38850635,2110.2,2109.4,5.42403475]
[1770679871111,5.38850635,2110.2,2109.2,5.42403475]
[1770679871312,5.38850635,2110.2,2109.0,5.42403475]
[1770679871615,5.38850635,2110.2,2108.9,0.00525276]
[1770679872315,5.38413982,2109.9,2108.5,5.42403475]
[1770679872712,5.38413982,2109.7,2108.5,5.42403475]
[1770679873214,5.38413982,2109.7,2108.5,5.4284113]
[1770679873614,5.38413982,2108.6,2107.7,5.42403475]
[1770679874819,5.38933562,2108.6,2107.7,5.42763015]
[1770679879715,0.0051958,2108.6,2107.7,5.42763015]
[1770679880418,5.60405192,2108.6,2107.7,5.42763015]
[1770679886025,0.0051958,2108.6,2107.7,5.42763015]
[1770679886218,5.60405192,2108.6,2107.7,5.42763015]
[1770679888623,5.59885612,2109.6,2108.5,2.69766231]
[1770679888829,5.59885612,2109.6,2108.6,5.53975115]
[1770679889528,5.60372305,2109.6,2108.6,5.53975115]
[1770679890925,5.60372305,2109.6,2108.5,2.69766231]
[1770679890926,0.00486693,2109.6,2108.9,5.53975115]
[1770679891123,5.59885612,2109.8,2108.9,5.53975115]
[1770679892130,5.60407141,2109.8,2108.9,5.53975115]
[1770679894027,5.60407141,2109.8,2108.7,5.53975115]
[1770679894328,5.60407141,2109.8,2108.3,5.53975115]
[1770679901138,5.59885612,2109.6,2108.3,5.53975115]
[1770679906231,4.1548244,2109.5,2108.1,5.53975115]
[1770679906432,5.59885612,2109.3,2108.1,5.53975115]
[1770679908437,5.59885612,2109.3,2108.3,5.53975115]
[1770679909227,5.59885612,2109.3,2108.0,5.66411531]
[1770679909430,5.59885612,2109.3,2107.7,5.54334655]
[1770679909431,5.68018345,2109.0,2107.7,5.54334655]
[1770679909634,5.68018345,2108.8,2107.7,5.54334655]
[1770679910239,5.68018345,2108.8,2107.8,6.04912134]
[1770679913547,42.15843203,2109.5,2107.8,6.04912134]
[1770679913548,5.68018345,2109.2,2107.8,6.04912134]
[1770679915147,5.68018345,2109.0,2107.8,6.04912134]
[1770679921852,5.68018345,2108.8,2107.7,6.05271674]
[1770679922454,5.68018345,2108.8,2107.8,6.04912134]
[1770679929258,5.68018345,2109.4,2107.9,6.04912134]
[1770679929458,2.78730418,2109.5,2107.9,6.04912134]
[1770679929459,5.68018345,2109.2,2107.9,6.28646134]
[1770679930253,5.68018345,2109.2,2108.1,6.04912134]
[1770679936164,5.68018345,2109.2,2108.2,6.04912134]
[1770679941374,5.68018345,2109.2,2108.0,5.92515748]
[1770679941573,6.16798353,2109.0,2108.0,5.92515748]
[1770679941774,6.16798353,2108.8,2108.0,5.92515748]
[1770679945467,6.16798353,2108.8,2107.9,5.92515748]
[1770679960681,4.16923593,2108.7,2107.7,0.0035954]
[1770679960883,3.05299706,2109.0,2107.7,0.0035954]
[1770679960884,6.16798353,2108.6,2107.7,0.0035954]
[1770679961284,6.16798353,2108.4,2107.7,5.92875288]
[1770679962581,6.16798353,2108.4,2107.7,0.0035954]
[1770679962884,4.18493334,2108.3,2107.3,5.92515748]
[1770679963087,6.16798353,2108.2,2107.3,5.92515748]
[1770679963383,6.16798353,2108.2,2107.2,30.672]
[1770679963785,6.17187892,2108.2,2107.2,30.67728949]
[1770679963976,6.17187892,2108.2,2107.2,36.60244697]
[1770679964181,6.17187892,2108.2,2107.3,5.92515748]
[1770679965681,6.17187892,2108.2,2107.2,30.67728949]
[1770679965886,6.17187892,2108.2,2107.2,36.60244697]
[1770679966686,6.17187892,2108.2,2107.3,5.92515748]
[1770679972793,6.17187892,2108.2,2107.2,6.011109]
[1770679974303,5.99828059,2108.0,2106.8,6.29748689]
[1770679974603,5.99828059,2107.8,2106.8,6.29748689]
[1770679975398,5.99828059,2107.8,2106.8,6.30116975]
[1770679975904,5.99828059,2107.8,2106.8,0.00368286]
[1770679976105,5.99828059,2107.6,2106.8,0.00368286]
[1770679977103,5.99828059,2107.6,2106.8,6.00950237]
[1770679980301,5.99828059,2108.1,2106.8,6.00950237]
[1770679981603,5.99828059,2108.1,2107.0,6.00581951]
[1770679984107,5.99828059,2109.0,2108.1,6.00581951]
[1770679984314,5.99828059,2109.0,2108.2,6.00581951]
[1770679985214,6.00164553,2109.0,2108.2,6.00581951]
[1770679985413,5.99828059,2109.2,2108.2,6.00581951]
[1770679986516,6.00260464,2109.2,2108.2,6.00581951]
[1770680003934,6.00260464,2109.2,2108.1,37.04169793]
[1770680004933,6.00260464,2109.2,2108.2,6.35669793]
[1770680013242,6.00260464,2109.2,2108.4,6.35669793]
[1770680013539,6.00260464,2109.2,2108.4,6.36008123]
[1770680014639,4.03189173,2109.1,2108.4,0.0033833]
[1770680014840,5.86637173,2109.0,2108.4,0.0033833]
[1770680024050,5.86637173,2109.0,2108.4,6.36008123]
[1770680029156,5.87069578,2109.2,2108.4,12.03028416]
[1770680029352,5.87069578,2109.2,2108.5,6.35669793]
[1770680031147,5.87069578,2109.2,2108.4,5.67358623]
[1770680031352,5.87069578,2109.2,2108.4,0.0033833]
[1770680031555,5.87069578,2109.2,2108.4,6.5000739]
[1770680036161,6.07878531,2109.7,2109.0,6.4966906]
[1770680036464,6.07231509,2109.7,2109.0,6.4966906]
[1770680037155,6.0769145,2109.7,2109.0,6.4966906]
[1770680038360,6.0769145,2109.7,2108.5,5.67407293]
[1770680038566,6.07878531,2109.5,2108.4,6.5000739]
[1770680038859,6.07878531,2109.3,2108.4,6.5000739]
[1770680042151,6.07878531,2109.6,2108.5,6.4966906]
[1770680043759,6.07878531,2109.4,2108.4,6.5000739]
[1770680043964,6.07878531,2109.2,2108.4,0.0033833]
[1770680044664,6.07878531,2109.2,2108.4,6.5000739]
[1770680046962,6.07878531,2109.2,2107.9,5.67407293]
[1770680047158,2.82375809,2109.5,2107.3,6.4966906]
[1770680047159,6.07878531,2108.1,2107.3,6.4966906]
[1770680047657,6.07878531,2108.1,2106.6,0.23749]
[1770680047862,6.07878531,2108.1,2106.8,6.4966906]
[1770680048062,6.08274344,2108.1,2106.8,6.50229243]
[1770680057565,0.00395813,2108.1,2107.0,6.4966906]
[1770680059368,6.07878531,2107.9,2106.8,6.50229243]
[1770680059764,6.24214559,2107.7,2106.8,0.00560183]
[1770680060867,6.51010589,2107.6,2106.4,6.47836315]
[1770680061167,6.51010589,2107.6,2106.3,0.27554968]
[1770680061566,6.51010589,2107.6,2106.2,6.47836315]
[1770680062069,6.51010589,2107.6,2106.2,6.48378791]
[1770680064874,6.51010589,2107.5,2106.2,6.48378791]
[1770680066776,6.51010589,2107.5,2106.2,6.72131791]
[1770680068872,6.51010589,2108.0,2106.2,6.72131791]
[1770680069078,6.51010589,2108.0,2106.6,6.47836315]
[1770680076193,4.1577969,2107.9,2106.6,6.47836315]
[1770680076391,6.51010589,2108.0,2106.6,6.47836315]
[1770680076592,4.1578005,2107.9,2106.6,6.47836315]
[1770680076786,6.51010589,2108.0,2106.6,6.47836315]
[1770680076986,6.51010589,2107.8,2106.6,6.47836315]
[1770680078793,6.51010589,2107.8,2106.7,6.47836315]
[1770680079096,0.00395813,2108.1,2106.7,6.47836315]
[1770680079097,6.51010589,2108.0,2106.7,6.47836315]
[1770680081591,6.51010589,2108.0,2106.9,6.47836315]
[1770680084798,0.00395813,2108.1,2106.9,6.47836315]
[1770680085193,6.51406402,2108.1,2106.9,6.47836315]
[1770680089607,0.00395813,2108.1,2106.9,12.10469006]
[1770680089902,0.00395813,2108.1,2107.0,7.05188759]
[1770680090096,0.00395813,2108.1,2107.1,7.05188759]
[1770680090706,0.00395813,2108.1,2107.2,7.05188759]
[1770680091294,0.00395813,2108.1,2107.3,7.05188759]
[1770680091703,6.69981867,2108.4,2107.5,7.05188759]
[1770680092806,6.70458256,2108.4,2107.5,7.05188759]
[1770680094602,0.00476389,2108.4,2107.5,7.05188759]
[1770680095109,6.69981867,2109.3,2108.2,7.05188759]
[1770680095302,6.69981867,2109.3,2108.3,7.05188759]
[1770680096002,6.70521454,2109.3,2108.3,7.05565431]
[1770680099003,0.00539587,2109.3,2108.3,7.05565431]
[1770680099207,6.70521454,2109.3,2108.3,7.05565431]
[1770680102912,0.00539587,2109.3,2108.3,7.05565431]
[1770680103113,6.70521454,2109.3,2108.3,7.05565431]
[1770680105213,0.00539587,2109.3,2108.3,7.05565431]
[1770680106413,6.69981867,2109.5,2108.3,7.05565431]
[1770680106414,6.69981867,2109.5,2108.5,7.05188759]
[1770680107015,6.69981867,2109.9,2108.5,7.05188759]
[1770680107216,6.69981867,2109.9,2108.7,7.05188759]
[1770680107416,0.00562488,2109.9,2108.8,7.28912759]
[1770680107611,6.69981867,2110.3,2109.1,7.05188759]
[1770680108413,6.69981867,2110.3,2109.3,7.05188759]
[1770680108612,6.70349655,2110.3,2109.3,7.05188759]
[1770680110215,6.70349655,2110.3,2109.3,7.32568627]
[1770680110412,6.70349655,2110.3,2108.6,5.86359691]
[1770680110609,6.70349655,2110.3,2108.8,7.05188759]
[1770680110814,6.70349655,2110.3,2108.8,7.32160865]
[1770680115930,6.70349655,2110.3,2109.0,7.05188759]
[1770680123732,6.70349655,2110.3,2109.2,6.86406658]
[1770680124526,6.70349655,2110.3,2109.4,6.86406658]
[1770680128634,0.00367788,2110.3,2109.4,6.86406658]
[1770680128826,7.40720218,2110.5,2109.4,6.86406658]
[1770680129432,7.40720218,2110.5,2109.6,6.86406658]
[1770680129633,7.40720218,2110.9,2109.7,6.86406658]
[1770680129833,7.40720218,2110.7,2109.7,6.86406658]
[1770680136143,7.40720218,2110.5,2109.7,6.86406658]
[1770680139951,7.40720218,2110.8,2109.7,6.86406658]
[1770680140248,7.40720218,2110.6,2109.7,6.86406658]
[1770680141748,7.40720218,2110.6,2109.8,6.86406658]
[1770680142052,7.40720218,2110.6,2109.8,6.86866162]
[1770680145656,7.41052237,2110.9,2110.0,6.86406658]
[1770680145860,7.41052237,2110.9,2110.0,37.51106658]
[1770680146456,7.40720218,2110.7,2109.9,6.86406658]
[1770680147059,7.40720218,2110.7,2109.8,0.00459504]
[1770680147264,7.40720218,2110.7,2109.8,6.86866162]
[1770680150363,7.15700116,2110.8,2109.8,6.86866162]
[1770680150564,2.69679465,2110.2,2109.2,5.62632691]
[1770680150768,7.15700116,2110.0,2109.1,7.72258616]
[1770680150969,7.15700116,2109.8,2108.9,7.72258616]
[1770680151560,7.15700116,2109.8,2108.9,7.72609658]
[1770680152568,7.15700116,2109.8,2108.9,0.00351042]
[1770680152767,7.15700116,2109.6,2108.9,0.00351042]
[1770680153765,7.15700116,2109.6,2108.7,30.646]
[1770680153966,7.15700116,2109.6,2108.7,38.63992811]
[1770680154476,7.15700116,2109.6,2108.8,7.72258616]
[1770680154875,7.15700116,2109.6,2108.8,7.72724715]
[1770680158077,7.15700116,2110.0,2108.8,7.72724715]
[1770680162976,7.15700116,2110.0,2109.1,7.72258616]
[1770680163279,7.15700116,2110.7,2109.7,7.72258616]
[1770680163482,7.15700116,2110.7,2109.9,7.72258616]
[1770680164581,7.15700116,2110.7,2110.0,7.72258616]
[1770680165075,7.15700116,2110.7,2109.8,7.72258616]
[1770680166072,7.15700116,2110.7,2109.7,30.654]
[1770680166477,11.31224689,2110.6,2109.7,30.654]
[1770680166683,7.15700116,2110.5,2109.7,30.654]
[1770680168382,7.15700116,2110.3,2109.2,7.72258616]
[1770680171488,7.15700116,2110.0,2108.8,7.72724715]
[1770680171881,4.15513919,2109.9,2108.8,7.72724715]
[1770680172087,7.15700116,2109.8,2108.8,7.72724715]
[1770680173479,7.15700116,2109.8,2108.8,0.00466099]
[1770680173883,7.15700116,2109.6,2108.5,38.37458616]
[1770680174487,7.15700116,2109.6,2108.6,7.72258616]
[1770680174888,7.15700116,2109.6,2108.5,30.652]
[1770680175190,7.15700116,2109.6,2108.5,38.38054235]
[1770680176488,7.15700116,2109.6,2108.6,7.72258616]
[1770680190996,7.15700116,2109.6,2108.5,0.00595619]
[1770680190997,7.27241743,2109.4,2108.5,0.00595619]
[1770680191188,7.27826088,2109.4,2108.5,0.00595619]
[1770680193895,7.27241743,2109.2,2108.5,0.00595619]
[1770680197004,7.27241743,2109.0,2108.0,7.6970531]
[1770680197205,7.27241743,2108.8,2108.0,7.6970531]
[1770680198010,7.27241743,2108.8,2108.0,7.70288498]
[1770680199193,7.27241743,2109.0,2108.0,7.9705666]
[1770680201108,7.27241743,2109.0,2108.1,7.6970531]
[1770680207413,2.82965546,2109.4,2108.3,7.6970531]
[1770680207615,0.00584345,2109.4,2108.5,7.6970531]
[1770680207910,0.00584345,2109.4,2108.7,7.6970531]
[1770680211115,7.38551009,2109.4,2108.7,7.6970531]
[1770680214237,7.37966664,2109.5,2108.7,7.6970531]
[1770680214424,7.37966664,2110.0,2108.7,7.6970531]
[1770680214615,7.37966664,2109.8,2108.7,7.6970531]
[1770680215220,7.38374461,2109.8,2108.7,7.6970531]
[1770680215416,2.82381201,2110.1,2109.1,7.57762202]
[1770680215715,2.82381201,2110.1,2108.6,11.46314691]
[1770680215716,10.20347865,2109.9,2108.4,7.57762202]
[1770680215923,7.37966664,2109.4,2108.1,7.57762202]
[1770680216123,7.37966664,2109.4,2108.0,0.2735135]
[1770680216124,7.37966664,2109.2,2108.0,7.85113552]
[1770680216423,7.37966664,2109.0,2108.0,7.85113552]
[1770680216610,7.38413463,2109.0,2108.0,7.85113552]
[1770680218216,0.00446799,2109.0,2108.0,7.85113552]
[1770680220123,7.37966664,2109.4,2108.0,13.68956552]
[1770680220430,7.02658619,2110.0,2109.1,7.57762202]
[1770680220431,7.37966664,2110.0,2109.1,7.57762202]
[1770680220626,7.37966664,2110.0,2108.8,2.69983426]
[1770680220627,7.37966664,2110.0,2109.3,7.57762202]
[1770680221227,7.38563058,2110.0,2109.3,7.57762202]
[1770680223731,7.38563058,2110.0,2108.9,7.57762202]
[1770680224032,7.38563058,2110.0,2108.9,38.24062202]
[1770680224734,7.38563058,2110.0,2109.0,7.57762202]